bitfinex/quotes_ETHUSD_20220220
["timestamp","ask_amount","ask_price","bid_price","bid_amount"]
[1645387735920,0.1894,2639.4,2638.7,0.16581473]
[1645387736923,2.08647,2639.4,2638.7,0.16581473]
[1645387738368,1.89707,2639.4,2638.7,0.16581473]
[1645387739669,1.89707,2639.4,2638.5,0.04921648]
[1645387740370,2.89707,2639.4,2638.5,0.04921648]
[1645387740570,2.89707,2639.4,2638.3,1.1888]
[1645387740771,2.89707,2639.4,2638.7,1.05545419]
[1645387741628,1.89707,2639.4,2638.7,1.05545419]
[1645387743622,1.89707,2639.4,2638.5,0.04927081]
[1645387744230,1.89707,2639.4,2638.4,3.5]
[1645387744422,1.89707,2639.4,2638.5,0.00246353]
[1645387744870,1.89707,2639.4,2638.8,0.93658925]
[1645387745068,1.89707,2639.4,2638.9,3.5]
[1645387745270,1.89707,2639.4,2638.8,0.93658925]
[1645387745667,1.89707,2639.4,2638.9,0.00270255]
[1645387751033,0.94853,2639.5,2638.9,3.38891308]
[1645387751234,2.7749,2639.8,2638.9,0.00270255]
[1645387751433,7.6874,2640.1,2638.9,3.38794856]
[1645387751633,7.6874,2640.1,2638.9,4.63174856]
[1645387752032,7.6874,2640.1,2639.5,0.25655544]
[1645387752271,3.41573754,2640.0,2639.5,0.22901565]
[1645387752472,2.8456,2640.0,2639.5,0.22901565]
[1645387752973,0.94829,2639.8,2639.5,0.22901565]
[1645387753473,0.94829,2639.8,2639.2,0.03381856]
[1645387753873,0.94829,2639.8,2638.9,1.24650255]
[1645387754072,0.94829,2639.8,2639.0,0.03380495]
[1645387754671,0.94829,2639.8,2639.0,4.45278694]
[1645387754875,0.94829,2639.8,2639.0,15.95278694]
[1645387755076,2.8456,2640.0,2639.0,4.71898199]
[1645387756025,2.8456,2640.0,2639.5,0.13121066]
[1645387757627,2.8456,2640.0,2639.0,3.38458775]
[1645387757829,2.8456,2640.0,2639.2,0.03119801]
[1645387758729,2.8456,2640.0,2639.5,0.98188651]
[1645387758928,2.8456,2640.0,2639.6,3.5]
[1645387759128,1.0,2639.9,2639.6,3.5]
[1645387759633,2.8456,2640.0,2639.6,3.5]
[1645387760276,1.70771239,2640.2,2639.6,3.91830275]
[1645387760277,0.57013239,2640.2,2639.6,3.91830275]
[1645387760478,0.25,2640.7,2639.6,15.41830275]
[1645387760678,0.25,2640.7,2639.7,1.1538]
[1645387760876,0.25,2640.7,2639.8,3.8]
[1645387761071,0.25,2640.7,2639.8,3.5]
[1645387761273,0.56064995,2640.8,2640.3,0.18371839]
[1645387761673,0.1892,2640.8,2640.3,0.18371839]
[1645387762277,0.1392,2640.8,2640.3,0.18371839]
[1645387762676,1.51638111,2640.9,2640.3,0.18371839]
[1645387763626,1.51638111,2640.9,2640.1,0.03152231]
[1645387763829,1.51638111,2640.9,2640.1,0.02815077]
[1645387764031,0.7292,2640.8,2640.1,0.02815077]
[1645387764228,1.0292,2640.8,2640.1,0.02815077]
[1645387764631,1.0292,2640.8,2639.7,2.02723622]
[1645387764632,1.18962295,2640.5,2639.7,2.02723622]
[1645387764833,1.18962295,2640.5,2639.7,1.1538]
[1645387764834,0.94825,2640.3,2639.7,1.1538]
[1645387765230,0.1892,2640.2,2639.7,1.1538]
[1645387765431,1.89663,2640.1,2639.7,1.1538]
[1645387765632,1.89663,2640.1,2639.6,0.11830275]
[1645387765831,1.89663,2640.1,2639.7,0.9429318]
[1645387766229,1.89663,2640.1,2639.6,0.11830275]
[1645387767871,2.46302581,2640.1,2639.6,0.11830275]
[1645387768272,3.49297041,2640.1,2639.6,0.11830275]
[1645387770476,2.46302581,2640.1,2639.6,0.11830275]
[1645387771525,2.46302581,2640.1,2639.3,1.20501707]
[1645387771526,1.89665,2639.8,2639.3,0.03941217]
[1645387771726,1.89665,2639.8,2638.7,1.23675785]
[1645387771921,1.89665,2639.8,2638.7,1.2242]
[1645387772120,0.1894,2639.7,2639.3,0.03941217]
[1645387772320,0.1894,2639.7,2638.8,0.00270255]
[1645387772524,0.84891855,2639.4,2638.8,0.00270255]
[1645387772722,0.94868,2639.3,2638.8,0.00270255]
[1645387773125,0.94868,2639.3,2638.0,5.4751]
[1645387773423,0.94868,2639.3,2637.6,2.40326485]
[1645387773424,1.89743,2639.0,2637.6,2.40326485]
[1645387773621,1.89743,2639.0,2638.0,1.1972]
[1645387773823,0.94872,2638.9,2638.0,1.1972]
[1645387774028,0.94872,2638.9,2638.5,1.08873877]
[1645387775677,0.94872,2638.9,2638.6,0.00086247]
[1645387776680,0.94872,2638.9,2638.5,1.08873877]
[1645387776879,0.94872,2638.9,2638.6,0.00246531]
[1645387777778,0.94872,2638.9,2638.0,12.6972]
[1645387777979,0.94872,2638.9,2638.6,0.00246531]
[1645387779039,0.94872,2638.9,2638.4,1.1656049]
[1645387779232,0.94872,2638.9,2638.0,12.9972]
[1645387779430,0.94872,2638.9,2638.6,0.00246531]
[1645387780236,1.13812,2638.9,2638.0,12.9972]
[1645387780433,0.94872,2638.9,2638.6,0.00246531]
[1645387781530,0.94872,2638.9,2638.3,1.0619454]
[1645387781730,0.94872,2638.9,2638.6,0.00246531]
[1645387782584,0.94872,2638.9,2638.3,1.0619454]
[1645387782785,0.94872,2638.9,2638.6,0.00246531]
[1645387783786,0.94872,2638.9,2638.3,1.0619454]
[1645387784184,0.94872,2638.9,2638.6,0.00246531]
[1645387784786,0.89872,2638.9,2638.6,0.00246531]
[1645387784986,0.89872,2638.9,2638.3,1.0619454]
[1645387785187,0.89872,2638.9,2638.6,0.00246531]
[1645387786235,0.89872,2638.9,2638.3,1.0619454]
[1645387786436,0.89872,2638.9,2638.6,0.00246531]
[1645387787539,0.89872,2638.9,2638.4,3.8]
[1645387787739,0.89872,2638.9,2638.6,0.00246531]
[1645387788540,0.89872,2638.9,2638.5,0.00268872]
[1645387788938,0.89872,2638.9,2638.6,0.00246531]
[1645387789775,0.89872,2638.9,2638.5,0.00268872]
[1645387790173,0.89872,2638.9,2638.6,0.00246531]
[1645387790974,0.89872,2638.9,2638.5,0.00268872]
[1645387791375,0.89872,2638.9,2638.6,0.00246531]
[1645387791978,0.89872,2638.9,2638.2,3.51255143]
[1645387792177,2.19872,2638.9,2638.3,0.00268872]
[1645387792376,2.19872,2638.9,2638.1,0.00268872]
[1645387793923,1.15968664,2638.8,2638.1,0.00268872]
[1645387794126,2.14872,2638.9,2638.1,0.00268872]
[1645387794526,0.89872,2638.9,2638.1,0.00268872]
[1645387794925,0.89872,2638.9,2638.4,0.00086049]
[1645387795126,2.08812,2638.9,2638.4,0.00086049]
[1645387795326,0.99676609,2638.8,2638.4,0.00086049]
[1645387795525,2.08812,2638.9,2638.4,0.00086049]
[1645387795729,2.08812,2638.9,2638.1,0.00268872]
[1645387796030,2.08812,2638.9,2638.5,0.00246539]
[1645387796226,2.38812,2638.9,2638.5,0.00246539]
[1645387796630,3.24386387,2638.9,2638.5,0.00246539]
[1645387797025,3.24386387,2638.9,2638.1,0.00268872]
[1645387797282,3.24386387,2638.9,2638.5,0.00246542]
[1645387797473,3.24386387,2638.9,2638.5,0.00166542]
[1645387798281,3.24386387,2638.9,2638.2,0.00268872]
[1645387799678,3.24386387,2638.9,2638.4,0.00085863]
[1645387800281,2.38812,2638.9,2638.4,0.00085863]
[1645387800578,2.38812,2638.9,2638.2,0.00268872]
[1645387801030,2.38812,2638.9,2638.4,0.00246544]
[1645387801830,2.38812,2638.9,2638.2,0.00268872]
[1645387802033,2.38812,2638.9,2638.4,0.00246544]
[1645387802630,2.19872,2638.9,2638.4,0.00246544]
[1645387803032,2.19872,2638.9,2638.2,0.00268872]
[1645387803336,2.19872,2638.9,2638.4,0.00246544]
[1645387804132,1.89872,2638.9,2638.4,0.00246544]
[1645387804333,2.19872,2638.9,2638.2,0.00268872]
[1645387804534,2.19872,2638.9,2638.4,0.00246544]
[1645387804977,2.14872,2638.9,2638.4,0.00246544]
[1645387805377,2.14872,2638.9,2638.2,0.00268872]
[1645387805578,2.09872,2638.9,2638.2,0.00268872]
[1645387805781,2.09872,2638.9,2638.4,0.00246544]
[1645387806581,2.09872,2638.9,2638.2,0.00268872]
[1645387806777,2.09872,2638.9,2638.2,1.13989178]
[1645387806980,2.09872,2638.9,2638.4,0.00246544]
[1645387807385,0.89872,2638.9,2638.4,0.00246544]
[1645387807683,4.50761425,2639.2,2638.4,0.00246544]
[1645387807885,0.19681425,2639.2,2638.3,4.55782292]
[1645387808080,0.19681425,2639.2,2638.4,0.00246544]
[1645387808281,3.65292465,2639.3,2638.4,0.00246544]
[1645387809135,3.65046,2639.3,2638.3,4.85782292]
[1645387809331,3.65292477,2639.3,2638.4,0.00246556]
[1645387809930,0.95092477,2639.3,2638.4,0.00246556]
[1645387810131,0.95092477,2639.3,2638.4,0.54246556]
[1645387810330,0.94846,2639.3,2638.5,3.5]
[1645387810533,0.95092477,2639.3,2638.5,3.5]
[1645387810732,0.95092477,2639.3,2638.5,3.8]
[1645387811332,0.95092477,2639.3,2638.5,3.75]
[1645387811532,0.94846,2639.3,2638.5,3.75]
[1645387811734,0.9009248,2639.3,2638.5,3.75]
[1645387812775,0.89846,2639.3,2638.5,3.75]
[1645387812975,0.9009248,2639.3,2638.5,3.75]
[1645387813974,0.89846,2639.3,2638.5,3.75]
[1645387814174,0.9009248,2639.3,2638.5,3.75]
[1645387814373,0.9009248,2639.3,2638.5,15.25]
[1645387814975,0.89846,2639.3,2638.5,15.25]
[1645387815378,0.9009248,2639.3,2638.5,15.25]
[1645387816234,2.14691,2639.5,2638.8,5.0]
[1645387816440,2.14691,2639.5,2638.9,15.0]
[1645387816441,6.48e-05,2639.3,2638.9,15.0]
[1645387816633,6.48e-05,2639.3,2639.1,11.5]
[1645387816833,6.48e-05,2639.3,2639.2,15.0]
[1645387817031,6.48e-05,2639.3,2639.2,15.3]
[1645387817433,0.25,2640.1,2639.2,15.3]
[1645387817633,0.25,2640.1,2639.2,15.84]
[1645387819877,0.2,2640.1,2639.2,15.84]
[1645387820175,0.00246477,2639.8,2639.2,15.84]
[1645387821076,0.2,2640.1,2639.2,15.84]
[1645387821376,6.482e-05,2639.6,2639.2,15.84]
[1645387822381,6.482e-05,2639.6,2638.8,1.3253338]
[1645387822382,1.89656,2640.0,2638.6,0.7294]
[1645387822586,1.89656,2640.0,2638.6,0.1894]
[1645387822587,4.04,2639.9,2638.6,0.1894]
[1645387822776,4.04,2639.9,2637.7,7.3675]
[1645387822777,0.1894,2639.8,2637.7,7.3675]
[1645387822977,4.3755,2639.8,2637.7,12.3675]
[1645387823175,4.04,2639.7,2637.7,7.3675]
[1645387823377,1.1894,2639.6,2637.7,7.3675]
[1645387823629,1.1894,2639.6,2638.2,0.00346136]
[1645387823630,0.94871,2639.4,2638.2,0.00346136]
[1645387823829,0.25,2638.3,2638.2,0.00346136]
[1645387824728,0.25,2638.3,2637.8,1.14600151]
[1645387824928,0.25,2638.3,2638.1,0.00246547]
[1645387825928,0.25,2638.3,2637.8,1.44600151]
[1645387826127,0.25,2638.3,2638.1,0.00246549]
[1645387827130,0.25,2638.3,2637.8,1.44600151]
[1645387827387,0.25,2638.3,2638.1,0.00246549]
[1645387828284,0.25,2638.3,2637.8,1.44600151]
[1645387828483,0.25,2638.3,2638.1,0.00246549]
[1645387829382,0.25,2638.3,2637.8,1.44600151]
[1645387829882,0.25,2638.3,2638.1,0.00246549]
[1645387830583,0.25,2638.3,2637.8,1.44600151]
[1645387831027,0.25,2638.3,2638.1,0.00246549]
[1645387831830,0.25,2638.3,2637.8,1.44600151]
[1645387832032,0.25,2638.3,2638.1,0.00246549]
[1645387833032,0.25,2638.3,2637.8,1.44600151]
[1645387833431,0.25,2638.3,2638.1,0.00246549]
[1645387833637,0.25,2638.3,2636.7,0.16706817]
[1645387833638,0.0008,2637.8,2636.7,0.16706817]
[1645387833838,0.0008,2637.8,2636.2,0.007]
[1645387833839,6.755,2637.5,2636.2,0.007]
[1645387834036,4.04,2637.4,2636.8,0.0460423]
[1645387834238,0.25,2637.1,2635.7,0.05267026]
[1645387834439,0.94052177,2637.0,2635.5,11.5]
[1645387834638,0.40052177,2636.3,2636.0,0.92911645]
[1645387834884,0.40052177,2636.3,2635.2,0.51296232]
[1645387834885,0.40052177,2636.3,2635.2,0.01296232]
[1645387835482,0.40052177,2635.8,2635.1,11.5]
[1645387835684,0.40052177,2635.8,2635.2,0.00319662]
[1645387835880,0.40052177,2635.8,2635.4,10.25]
[1645387836088,0.40052177,2635.8,2635.4,10.243614]
[1645387836389,0.25,2636.4,2635.7,5.0]
[1645387836580,0.25,2636.5,2635.6,23.88]
[1645387836781,0.25,2636.5,2635.6,18.88]
[1645387837181,0.25,2636.5,2636.4,1.01584302]
[1645387837981,0.25,2636.5,2635.6,19.18]
[1645387838282,0.25,2636.5,2635.6,19.09218107]
[1645387838747,1.89905,2636.4,2635.6,19.09218107]
[1645387839550,1.89905,2636.4,2635.8,1.15383205]
[1645387839955,0.94949,2636.3,2635.8,1.15383205]
[1645387840355,0.25,2636.5,2635.8,17.65383205]
[1645387840557,0.00166215,2636.3,2635.8,17.95383205]
[1645387840755,0.00166215,2636.3,2636.0,11.5]
[1645387840955,0.00166215,2636.3,2636.2,0.92519183]
[1645387841558,0.25,2636.5,2636.2,0.92519183]
[1645387841756,0.00166219,2636.4,2636.2,0.92519183]
[1645387841960,0.95111219,2636.4,2635.8,0.3]
[1645387842284,0.95111219,2636.4,2635.6,7.68]
[1645387842788,0.94945,2636.4,2635.7,11.5]
[1645387842984,0.94945,2636.4,2635.8,0.00248242]
[1645387842985,0.00248196,2636.3,2635.8,0.00248242]
[1645387843184,1.90163196,2636.3,2635.8,0.00248242]
[1645387843785,0.1895,2636.2,2635.1,11.50993215]
[1645387843984,2.08885,2636.3,2635.1,11.5]
[1645387844186,1.90163199,2636.3,2635.8,0.00248245]
[1645387844385,0.25,2635.9,2635.8,0.00248245]
[1645387844990,2.14958,2635.9,2635.8,0.00248245]
[1645387845189,2.14958,2635.9,2635.4,0.90086758]
[1645387845387,0.94973,2635.8,2635.4,0.90086758]
[1645387845687,0.94973,2635.8,2635.1,11.8]
[1645387845889,0.94973,2635.8,2635.1,0.3]
[1645387846135,0.94973,2635.8,2635.0,11.8810992]
[1645387846535,0.94973,2635.8,2635.0,11.7810992]
[1645387846934,0.94973,2635.8,2635.2,0.89129239]
[1645387847433,0.94973,2635.8,2635.0,0.0810992]
[1645387847836,0.94973,2635.8,2635.4,0.00082152]
[1645387848639,0.94973,2635.8,2635.1,1.10030459]
[1645387849037,0.94973,2635.8,2635.5,0.00248571]
[1645387849639,0.1897,2635.7,2635.5,0.00248571]
[1645387849881,0.1897,2635.7,2635.2,0.00265976]
[1645387850081,0.1897,2635.7,2635.5,0.00248569]
[1645387850683,1.13943,2635.8,2635.5,0.00248569]
[1645387851085,0.25,2635.9,2635.1,11.5]
[1645387851285,0.25,2635.9,2635.2,0.00265976]
[1645387851484,0.25,2635.9,2635.5,0.00248569]
[1645387851884,0.25,2635.9,2635.5,0.94998113]
[1645387852285,0.25,2635.9,2635.5,0.94749544]
[1645387852490,0.25,2635.9,2635.6,0.00248568]
[1645387852686,0.25,2635.9,2635.6,0.00514544]
[1645387852888,0.25,2635.9,2635.6,0.00248568]
[1645387853085,0.25,2635.9,2635.6,0.00514544]
[1645387853287,0.25,2635.9,2635.6,0.00248568]
[1645387853529,0.25,2635.9,2635.6,0.00265976]
[1645387853731,0.25,2635.9,2635.6,0.00248566]
[1645387853937,0.25,2635.9,2635.6,0.00514542]
[1645387854132,0.25,2635.9,2635.8,11.5]
[1645387854532,0.25,2635.9,2635.8,11.8]
[1645387855334,8.53e-05,2636.1,2635.8,11.8]
[1645387855537,8.53e-05,2636.1,2635.9,0.00265976]
[1645387855934,0.25,2636.2,2635.9,0.00265976]
[1645387856133,0.25,2636.2,2636.0,11.5]
[1645387856334,0.25,2636.2,2636.0,12.76121186]
[1645387857381,0.20753255,2636.2,2636.0,12.76121186]
[1645387857580,0.81913621,2636.7,2636.4,1.14539647]
[1645387859082,0.81913621,2636.7,2636.4,1.14805623]
[1645387860888,0.82168661,2636.7,2636.4,1.14805623]
[1645387861340,0.82168661,2636.7,2636.4,0.00265976]
[1645387861543,0.82168661,2636.7,2636.1,0.00265976]
[1645387861739,2.72063661,2636.7,2635.8,0.00255124]
[1645387861939,2.71808621,2636.7,2635.7,0.00265976]
[1645387862341,0.00255045,2636.5,2636.0,1.15358655]
[1645387862542,0.00255045,2636.5,2636.1,0.00265976]
[1645387862543,0.95202045,2636.5,2636.1,0.00265976]
[1645387863142,0.94947,2636.5,2636.1,0.00265976]
[1645387863346,0.00255048,2636.4,2636.1,0.00265976]
[1645387863547,0.00255048,2636.4,2635.8,0.00255107]
[1645387863941,0.25,2636.3,2635.8,0.00255107]
[1645387864341,0.25,2636.3,2635.8,1.11072885]
[1645387864543,0.25,2636.3,2635.9,0.00265976]
[1645387864785,0.25246433,2636.3,2635.8,0.00245039]
[1645387865488,0.25246433,2636.3,2635.5,7.68]
[1645387865489,0.25,2636.3,2635.5,7.68]
[1645387865687,0.25,2636.3,2635.5,7.38]
[1645387865994,0.25246433,2636.3,2635.8,0.00245039]
[1645387866888,0.25,2636.3,2635.6,0.89895704]
[1645387867087,0.25246433,2636.3,2635.8,0.00245039]
[1645387868091,0.25,2636.3,2635.6,0.89895704]
[1645387868290,0.25238504,2636.3,2635.8,0.00218605]
[1645387868934,0.25238504,2636.3,2635.6,0.85114309]
[1645387869136,0.94965,2636.1,2635.6,0.85114309]
[1645387870137,0.94965,2636.1,2635.6,0.80114309]
[1645387870736,0.94965,2636.1,2635.4,0.1895]
[1645387870938,0.4395,2636.3,2635.1,12.6882]
[1645387871146,1.38908,2636.3,2635.1,12.6882]
[1645387871939,0.98538204,2636.0,2635.6,0.0008213]
[1645387872282,0.94968,2636.0,2635.6,0.0008213]
[1645387873281,0.94968,2636.0,2635.7,0.00255089]
[1645387873483,1.13918,2636.0,2635.7,0.00255089]
[1645387874185,1.13918,2636.0,2635.3,0.9575128]
[1645387874482,0.25,2635.8,2635.7,0.00255093]
[1645387875484,0.25,2635.8,2635.6,0.00255091]
[1645387876339,0.25,2635.8,2635.4,13.85076346]
[1645387876533,0.25,2635.8,2635.4,13.55076346]
[1645387876734,0.25,2635.8,2635.4,13.84735121]
[1645387876931,0.25,2635.8,2635.4,11.8]
[1645387877733,0.25,2635.8,2635.5,0.00244529]
[1645387878432,0.25,2635.8,2635.7,12.68490798]
[1645387879639,0.25,2635.8,2635.7,12.98490798]
[1645387881580,0.25,2635.8,2635.7,12.68490798]
[1645387881784,0.00254719,2636.1,2635.7,12.69737027]
[1645387881785,4.719e-05,2636.1,2635.7,12.69737027]
[1645387881987,4.719e-05,2636.1,2635.7,13.5602121]
[1645387882183,4.719e-05,2636.1,2635.8,0.00264567]
[1645387882482,0.25,2636.8,2635.8,0.00264567]
[1645387883083,0.25,2636.8,2636.2,0.88248386]
[1645387883284,0.1895,2637.0,2636.3,0.00264567]
[1645387883938,0.9494,2636.8,2636.3,0.00264567]
[1645387884729,0.9494,2636.8,2636.0,0.00264567]
[1645387884931,0.1895,2636.7,2636.0,0.00264567]
[1645387885633,1.27477153,2636.7,2636.0,0.00264567]
[1645387885833,0.1895,2636.7,2636.0,0.00264567]
[1645387886232,0.00254724,2636.5,2636.0,0.00264567]
[1645387887284,0.00172599,2636.4,2636.0,0.00264567]
[1645387888285,0.9494,2636.8,2636.0,0.00264567]
[1645387888685,0.00254523,2636.3,2636.0,0.00264567]
[1645387889486,0.9494,2636.8,2636.0,0.00264567]
[1645387889690,0.00254525,2636.3,2636.0,0.00264567]
[1645387890794,0.9494,2636.8,2636.0,0.00264567]
[1645387891036,9.4142,2637.3,2636.1,11.5]
[1645387891037,4.525e-05,2636.3,2636.1,11.5]
[1645387891238,0.13954525,2637.1,2636.2,0.00264567]
[1645387892036,0.13954525,2637.1,2636.5,0.91193375]
[1645387892238,0.1896,2637.1,2636.5,0.91193375]
[1645387894248,3.29528485,2637.2,2636.5,0.91193375]
[1645387894540,0.00254505,2636.9,2636.5,0.91193375]
[1645387895383,0.00254505,2636.9,2636.2,11.5]
[1645387895584,3.29528485,2637.2,2636.2,11.50264567]
[1645387895783,0.00231497,2636.8,2636.2,11.50264567]
[1645387896285,0.00231497,2636.8,2636.2,0.00264567]
[1645387896483,0.00231497,2636.8,2636.4,11.5]
[1645387896683,2.53550485,2637.1,2636.4,11.5]
[1645387896889,2.53550485,2637.1,2636.7,0.88497621]
[1645387896890,0.1895,2637.1,2636.7,0.88497621]
[1645387897087,2.34600485,2637.4,2636.7,12.38497621]
[1645387897285,2.3599822,2637.5,2636.7,12.38497621]
[1645387897688,2.59600485,2637.5,2636.7,12.38497621]
[1645387897885,0.25,2637.5,2636.7,0.88497621]
[1645387898189,0.00231484,2637.2,2636.2,1.45884567]
[1645387898385,0.00231484,2637.2,2636.2,1.15884567]
[1645387898639,0.00231484,2637.2,2636.2,1.1562]
[1645387899038,0.00231484,2637.2,2636.3,11.5]
[1645387899239,0.00231484,2637.2,2636.4,1.10355299]
[1645387899240,1.17513734,2637.2,2636.4,1.10355299]
[1645387899545,0.00231497,2636.8,2636.4,1.10355299]
[1645387900340,0.94924,2637.3,2636.4,1.10355299]
[1645387900541,0.00233036,2636.7,2635.7,1.898331]
[1645387900750,0.00233036,2636.7,2635.4,0.10926626]
[1645387900751,5.0,2635.9,2635.4,0.10926626]
[1645387901045,1.13,2635.5,2634.5,1.7962164]
[1645387901248,1.13,2635.1,2634.5,0.9436164]
[1645387901455,1.13,2635.1,2633.2,0.0849038]
[1645387901456,0.09436163,2634.0,2633.2,0.0849038]
[1645387901653,0.91702656,2633.0,2631.4,39.35197807]
[1645387901857,0.95081,2632.8,2631.5,1.6147763]
[1645387902049,0.95081,2632.8,2631.4,31.92197807]
[1645387902050,1.67,2632.7,2631.4,31.92197807]
[1645387902293,1.13,2632.3,2631.4,31.92197807]
[1645387902492,1.13,2632.0,2631.8,0.5]
[1645387902795,1.13,2632.0,2631.3,4.35534239]
[1645387902993,1.13,2631.8,2630.8,0.01293032]
[1645387903192,0.25,2632.6,2630.9,1.61498893]
[1645387903193,1.13,2631.4,2630.9,1.61498893]
[1645387903393,0.25,2632.6,2631.3,0.01256107]
[1645387903596,0.25,2632.6,2631.4,1.72263875]
[1645387903796,1.4167039,2633.3,2632.1,0.01266895]
[1645387903992,0.25,2633.4,2632.1,0.01266895]
[1645387904193,0.25,2633.4,2632.2,11.5]
[1645387904398,0.25,2633.4,2632.1,0.55266895]
[1645387904399,0.25,2633.4,2632.7,0.01226408]
[1645387904603,0.25006163,2634.0,2633.0,0.9501249]
[1645387904805,6.163e-05,2634.0,2633.4,1.05411458]
[1645387905100,6.163e-05,2634.0,2633.7,0.01240374]
[1645387905295,6.163e-05,2634.0,2633.8,0.54]
[1645387905697,6.163e-05,2634.0,2633.9,3.5]
[1645387905895,6.163e-05,2634.0,2633.9,0.54]
[1645387906141,6.163e-05,2634.0,2633.9,0.84]
[1645387906336,6.163e-05,2634.0,2633.9,0.8]
[1645387906535,6.163e-05,2634.0,2633.9,4.3]
[1645387906734,6.163e-05,2634.0,2633.9,0.8]
[1645387906935,6.163e-05,2634.0,2633.9,4.3]
[1645387907335,6.163e-05,2634.0,2633.9,15.8]
[1645387907533,6.163e-05,2634.0,2633.9,15.795688]
[1645387908936,0.25,2634.7,2633.9,15.795688]
[1645387908937,0.25,2634.7,2633.9,12.295688]
[1645387909140,0.25,2634.7,2634.3,0.90466606]
[1645387909336,1.4167039,2635.4,2634.4,0.54]
[1645387909789,2.58234456,2635.5,2634.4,0.54]
[1645387910284,1.4167039,2635.6,2634.7,0.9495558]
[1645387910285,0.25,2635.1,2634.7,0.9495558]
[1645387910483,0.25,2635.1,2634.8,0.54081288]
[1645387911285,0.25,2635.1,2634.7,0.3]
[1645387911486,0.25,2635.1,2634.5,0.3]
[1645387911683,0.25,2635.1,2634.8,0.00081288]
[1645387912084,5.0,2635.0,2634.8,0.00081288]
[1645387912295,0.25,2635.1,2634.8,0.00081288]
[1645387912485,0.25,2635.1,2633.8,6.6203485]
[1645387912486,5.0,2635.0,2633.8,0.56377233]
[1645387912688,1.4167039,2635.0,2633.8,0.56377233]
[1645387912986,6.4167039,2635.0,2634.8,0.00081289]
[1645387913185,1.6667039,2635.1,2634.8,0.00081289]
[1645387913388,0.25,2635.1,2634.8,0.00081289]
[1645387913637,0.25,2635.1,2634.2,1.08242765]
[1645387914036,0.25,2635.1,2634.8,0.00256604]
[1645387914839,5.0,2635.0,2634.8,0.00256604]
[1645387915043,5.0,2635.0,2633.9,11.5]
[1645387915237,0.25,2635.1,2634.8,0.00256604]
[1645387915439,5.0,2634.9,2634.8,0.00256604]
[1645387916237,5.0,2634.9,2633.8,1.1587]
[1645387916438,0.95007,2635.0,2634.7,0.00256607]
[1645387916637,0.95007,2635.0,2634.3,0.00928434]
[1645387916638,5.0,2634.8,2634.3,0.00928434]
[1645387917038,1.10007,2635.0,2634.3,0.00928434]
[1645387917293,5.0,2634.4,2633.9,0.0026138]
[1645387917492,1.18176905,2634.5,2633.9,0.0026138]
[1645387917685,1.18176905,2634.5,2633.7,0.0026138]
[1645387917686,5.0,2634.0,2633.7,0.0026138]
[1645387917888,5.0,2634.0,2633.5,0.3026138]
[1645387918085,5.0,2634.0,2633.5,0.0026138]
[1645387918288,5.0,2634.0,2633.6,0.0026138]
[1645387918489,5.0,2634.0,2633.4,12.47326932]
[1645387918887,0.25,2634.2,2633.4,12.77326932]
[1645387919489,5.0,2634.0,2633.4,0.3026138]
[1645387919991,5.0,2634.0,2633.4,0.0026138]
[1645387920188,5.0,2634.0,2633.1,0.0026138]
[1645387920389,0.25,2633.8,2633.1,0.0026138]
[1645387920588,0.25,2633.8,2633.1,11.5026138]
[1645387920790,0.25,2633.8,2633.2,12.78684951]
[1645387921033,5.25,2633.8,2633.3,0.0026138]
[1645387921235,5.25,2633.8,2633.3,0.0051803]
[1645387921634,5.25,2633.8,2633.3,0.0025665]
[1645387921635,5.0,2633.6,2633.3,0.0025665]
[1645387922235,5.0,2633.6,2632.8,0.0026138]
[1645387922435,0.25,2633.3,2632.9,0.01026755]
[1645387923443,0.25,2633.3,2632.8,0.0026138]
[1645387923637,0.25,2633.3,2633.0,0.00081345]
[1645387924237,0.25,2633.3,2633.1,0.02379341]
[1645387924892,0.25,2633.3,2633.1,0.02460683]
[1645387925691,0.25,2633.3,2633.1,0.02379341]
[1645387926092,0.25,2633.3,2633.1,0.02460683]
[1645387927091,0.25,2633.3,2633.1,0.02379341]
[1645387927294,0.25,2633.3,2633.1,0.02637634]
[1645387927898,5.0,2633.2,2633.1,0.02637634]
[1645387928292,5.0,2633.2,2633.1,0.02379341]
[1645387929335,0.25,2633.3,2633.1,0.02379341]
[1645387929537,5.0,2633.2,2633.1,0.02379341]
[1645387929737,5.0,2633.2,2633.0,0.00258246]
[1645387930538,5.0,2633.2,2632.4,1.03044662]
[1645387930738,5.0,2633.2,2632.5,0.00261557]
[1645387930937,1.20076,2633.3,2633.0,0.00258248]
[1645387931135,5.0,2633.1,2633.0,0.00258248]
[1645387931337,4.25655036,2633.1,2633.0,0.00258248]
[1645387931941,4.25655036,2633.1,2632.2,0.89738146]
[1645387932139,8.57486,2633.3,2632.9,0.00258249]
[1645387932389,0.0008,2632.8,2632.5,0.00652772]
[1645387932990,0.0008,2632.8,2632.3,0.00261557]
[1645387932991,4.25655036,2632.6,2632.3,0.00261557]
[1645387933297,4.25655036,2632.4,2632.1,0.00261557]
[1645387933489,4.25655036,2632.4,2631.5,8.5148]
[1645387933490,0.25,2632.4,2631.9,0.00261557]
[1645387933690,0.25,2632.4,2631.7,0.00261557]
[1645387933691,4.25655036,2632.0,2631.7,0.00261557]
[1645387933890,4.25655036,2631.8,2631.5,7.38261557]
[1645387934092,4.25655036,2631.8,2631.6,0.00261557]
[1645387934291,4.50655036,2631.8,2631.4,2.79121209]
[1645387934494,0.25,2631.8,2631.6,0.0518]
[1645387934693,4.25655036,2631.7,2631.6,0.0518]
[1645387934892,0.25,2631.8,2631.6,0.0518]
[1645387935293,0.25,2632.5,2631.5,3.5]
[1645387935500,0.25,2632.5,2631.6,11.956]
[1645387935693,0.25,2632.3,2631.9,0.950568]
[1645387935899,0.25,2632.3,2631.7,3.5]
[1645387935900,0.25,2632.3,2631.8,0.456]
[1645387936141,0.25,2632.3,2631.8,0.45861557]